Cogmind - Beta 16 @@@ ROGUE MODE // 2025.11.16 @ 13:08:01 Player: FrigidRock Result: Destroyed by H-88 Terminator with KE Penetrator Performance ------------- Evolutions (8) 4000 Regions Visited (22) 4400 Robots Destroyed (265) 1325 Value Destroyed (15171) 15171 Prototype IDs (31) 620 Alien Tech Used (2) 400 Bonus (10922) 10922 TOTAL SCORE: 36838 Bonus ------- High Alert Combat Kills 384 Follower Combat Kills 3191 Entered Garrisons 1000 Used RIF Installer 2500 Network Hubs Disabled 400 Met R17 at Cetus 500 Found Hidden Lab 3000 Friendly Fire -53 Cogmind --------- Core Integrity 0/1450 Matter 109/300 Energy 68/100 System Corruption 21% Temperature Cool (4) Movement Hovering (60) Location -2/Testing Parts ------- > --- POWER (2) -------- (None) > --- PROPULSION (7) --- Experimental Gyrokinetic Inverter > --- UTILITY (12) ----- 2N-1CE's Frost Array > --- WEAPON (3) ------- (None) > --- INVENTORY (5) ---- Relay Coupler [Proto] (9) Transdimensional Reconstructor Heavy Wave Gun Peak State ------------ > --- POWER ------------ Quantum Reactor Quantum Reactor > --- PROPULSION ------- Cooled Antigrav System Cooled Antigrav System Cooled Antigrav System Cooled Antigrav System Cooled Antigrav System Combat Linear Gravjet Combat Linear Gravjet > --- UTILITY ---------- Advanced Heat Sink High-capacity Storage Unit Advanced Target Analyzer Core Analyzer Medium Regenerative Plating Hacking Suite System Shield Quantum Router Relay Coupler [NC] Relay Coupler [Sentry] Relay Coupler [Hunter] > --- WEAPON ----------- Enhanced Nova Cannon Guided Remote Datajack Plasma Lance > --- INVENTORY -------- Enhanced Biometal Leg Heavy Shield Leg Advanced Heat Sink Advanced Coolant Injector Long-range Terrain Scanner Relay Coupler [Proto] Relay Coupler [Proto] Relay Coupler [Proto] Relay Coupler [Proto] Transdimensional Reconstructor Hypervelocity EM Gauss Rifle Hypervelocity EM Gauss Rifle Enhanced Nova Cannon Enhanced Nova Cannon Heavy Gauss Cannon Enhanced Hardcell Cannon Compact Tesla Bomb Launcher Improved Plasma Cutter [Rating: 174] Favorites ----------- Power Quantum Reactor Engine Light Angular Momentum Engine Power Core Light Nuclear Core Reactor Quantum Reactor Propulsion Carbon-fiber Leg Treads Advanced Treads Leg Carbon-fiber Leg Wheel Wheel Hover Unit Cooled Antigrav System Flight Unit VTOL Module Utility High-capacity Storage Unit Device Advanced Heat Sink Storage High-capacity Storage Unit Processor Core Analyzer Hackware Relay Coupler [NC] Protection Improved Light Armor Plating Weapon Improved Heavy Machine Gun Energy Gun Advanced Variable Charge Gun Energy Cannon Long-range Proton Cannon Ballistic Gun Improved Heavy Machine Gun Ballistic Cannon Flak Cannon Launcher Compact Tesla Bomb Launcher Special Weapon Remote Datajack Impact Weapon Shock Maul Slashing Weapon Carbide Saw Piercing Weapon Plasma Lance Build | -11 -10 -9 -8 -8 -7 -7 -6 -6 -6 -6 -5 -5 -5 -5 -5 -4 -4 -3 -3 -3 -2 -2 ------- Run | Yrd Mat Mat Mat Gar Fac Gar Fac Gar Fac Gar Fac Ext Cet Arc Hub Fac Gar Res Arm Lab Res Tes Slots Evolved 16 | . . 2 2 . 2 . 2 . . . 2 . . . . 2 . 2 . . 2 . Power 1 | . . . . . . . . . . . . . . . . 1 . . . . . . Propulsion 4 | . . 1 . . 1 . . . . . 1 . . . . . . . . . 1 . Utility 10 | . . 1 2 . 1 . 2 . . . 1 . . . . 1 . 2 . . . . Weapon 1 | . . . . . . . . . . . . . . . . . . . . . 1 . Parts Attached 343 | 8 1 16 7 9 20 20 5 30 35 6 10 28 13 6 15 27 16 12 27 5 19 8 Power 36 | 1 . 4 . 1 1 2 1 4 2 . 1 2 1 . 3 3 3 1 2 . 3 1 Engine 8 | 1 . 2 . . . . 1 2 1 . . . . . . 1 . . . . . . Core 12 | . . 2 . 1 1 2 . 2 . . . 2 . . 1 1 . . . . . . Reactor 16 | . . . . . . . . . 1 . 1 . 1 . 2 1 3 1 2 . 3 1 Propulsion 98 | 3 . 6 1 4 7 8 2 9 12 2 1 10 3 1 3 7 . 3 7 1 6 2 Treads 19 | . . 3 1 1 2 4 2 . . . . . 2 1 1 1 . 1 . . . . Leg 51 | 2 . 3 . 3 1 . . 5 11 2 1 7 1 . 2 6 . 2 2 . 3 . Wheel 4 | 1 . . . . . . . . . . . 3 . . . . . . . . . . Hover 14 | . . . . . 4 . . . . . . . . . . . . . 5 1 3 1 Flight 10 | . . . . . . 4 . 4 1 . . . . . . . . . . . . 1 Utility 133 | 1 . 5 4 2 5 6 2 11 9 4 5 11 6 3 6 11 12 7 14 2 5 2 Device 38 | . . 1 1 1 1 1 2 1 2 . 3 2 2 1 2 4 3 3 3 . 3 2 Storage 6 | 1 . 2 1 . . . . . . . . 1 . . . 1 . . . . . . Processor 12 | . . . . . . . . 2 3 . 1 2 1 1 . . . . 2 . . . Hackware 55 | . . . 2 . 2 4 . 6 2 4 . 2 . 1 3 5 9 4 8 1 2 . Protection 22 | . . 2 . 1 2 1 . 2 2 . 1 4 3 . 1 1 . . 1 1 . . Artifact . | . . . . . . . . . . . . . . . . . . . . . . . Weapon 76 | 3 1 1 2 2 7 4 . 6 12 . 3 5 3 2 3 6 1 1 4 2 5 3 Energy Gun 17 | 1 1 . . 1 . 2 . 1 2 . . 1 1 . 2 . . . . 1 1 3 Energy Cannon 12 | . . 1 . . 1 . . . 1 . 2 1 . . . 2 . . 3 . 1 . Ballistic Gun 22 | 2 . . . . 2 2 . 5 4 . 1 1 2 2 . . . . . . 1 . Ballistic Cannon 12 | . . . 2 1 2 . . . 3 . . . . . . 2 . . 1 . 1 . Launcher 3 | . . . . . 1 . . . . . . . . . 1 1 . . . . . . Special Weapon 7 | . . . . . 1 . . . 2 . . 2 . . . 1 . . . 1 . . Impact Weapon 1 | . . . . . . . . . . . . . . . . . . . . . 1 . Slashing Weapon 1 | . . . . . . . . . . . . . . . . . 1 . . . . . Piercing Weapon 1 | . . . . . . . . . . . . . . . . . . 1 . . . . Special Melee Weapon . | . . . . . . . . . . . . . . . . . . . . . . . Unidentified Prototypes 27 | . . . . . . . . . 2 . . . 4 . 2 2 . 4 1 6 1 5 Corrupted Parts 3 | . . . . . 1 . . . . . . 1 . . . . . . . . 1 . System Corruption 23 | . . . . . 8 . . . . . . 5 . . . . . . . . 10 . Parts Lost 153 | . . 1 1 5 12 12 . 20 5 4 1 14 3 2 9 11 10 . 14 . 25 4 Power 12 | . . . . 1 1 1 . 3 . . . . . . 1 2 1 . 1 . 1 . Propulsion 58 | . . 1 . 2 6 6 . 8 2 1 . 5 3 . 3 4 2 . 3 . 12 . Utility 61 | . . . 1 1 3 2 . 5 1 3 1 6 . 2 4 3 7 . 9 . 11 2 Weapon 22 | . . . . 1 2 3 . 4 2 . . 3 . . 1 2 . . 1 . 1 2 Highest Loss Streak 17 | . . 1 1 2 9 8 . 8 3 3 1 10 3 1 4 5 5 . 9 . 17 3 To Critical Strikes 3 | . . . . . . . . . . . . . 2 . . . . . . . 1 . Average Backups 15 | . 5 12 13 14 11 12 14 14 16 19 13 16 18 19 18 16 18 19 19 19 17 4 Power 1 | . . 2 3 1 . . 2 1 2 2 1 1 1 2 . . . . . 1 . . Propulsion 1 | . 1 2 1 . . . . . 2 1 . 1 3 2 1 1 2 . . 1 . . Utility 8 | . 1 3 4 8 7 8 8 9 9 9 6 6 7 7 9 8 10 13 11 6 6 1 Weapon 3 | . 1 4 4 2 2 2 2 2 2 4 5 4 3 4 4 5 4 3 4 7 7 . Tool/Special . | . . . . . . . . . . . . . . . . . . . . . . . Unused Backups 50 | . . 1 2 8 . . 3 2 6 . . . 2 1 . 4 6 . 3 2 6 4 Power 7 | . . . 2 1 . . 1 . 1 . . . 1 . . . . . 1 . . . Propulsion 6 | . . . . . . . . . 2 . . . . 1 . . 3 . . . . . Utility 22 | . . 1 . 5 . . 1 1 1 . . . 1 . . 2 3 . . . 4 3 Weapon 12 | . . . . 1 . . 1 1 2 . . . . . . 2 . . 2 1 2 . Tool/Special 3 | . . . . 1 . . . . . . . . . . . . . . . 1 . 1 Average Slot Usage (%) 87 | . 95 89 91 95 89 86 92 85 96 88 91 93 87 87 85 83 84 82 84 82 82 9 Engine 1 | . 14 7 9 3 . . 5 3 3 . . . . . . . . . . . . . Core 1 | . . 3 . 4 6 3 . . . . . 2 . . . 3 . . . . . . Reactor 3 | . . . . . . . . . 2 6 4 2 4 5 4 4 9 4 6 4 6 . Treads 4 | . . 11 27 12 8 8 26 6 . . . . 2 13 14 . . 2 . . . . Leg 13 | . 8 15 . 12 12 . . 6 25 24 27 25 14 2 1 19 14 10 13 . . . Hover 2 | . 19 3 . . . 4 . . . . . . . . . . . . 5 23 25 1 Flight 1 | . . . . . . 13 . 10 . . . . . . . . . . . . . . Device 9 | . . 5 9 18 16 1 12 3 3 2 11 14 11 16 11 11 14 9 10 8 5 1 Storage 5 | . 14 11 9 9 7 7 6 6 6 6 5 5 5 5 5 5 5 4 4 4 3 . Processor 6 | . . . . . . . . 7 8 13 16 11 17 16 12 6 5 4 7 13 8 . Hackware 16 | . . . 9 9 10 24 20 24 25 14 7 8 9 5 12 19 18 36 27 23 20 3 Protection 4 | . 9 11 9 6 7 6 6 2 5 5 2 5 5 5 6 3 3 . . . 3 . Energy Gun 2 | . 22 12 . 3 . 2 6 1 1 . . . 3 . 3 1 . . . . . 2 Energy Cannon 1 | . . 7 2 . 4 1 . . 1 . 4 1 1 . . 2 4 . 3 . . . Ballistic Gun 3 | . 5 . . . 2 5 5 7 6 11 2 7 3 11 4 . . . . . . . Ballistic Cannon 2 | . . . 14 14 5 2 . . 2 . . . . . . 2 2 . . . . . Special Weapon 1 | . . . . . 1 1 . 1 . 1 3 1 2 . 1 . 1 3 1 . 1 . Peak Build Rating 174 | 6 8 23 31 34 42 42 45 49 70 66 74 77 116 116 116 116 118 117 148 151 174 53 Average Rating 69 | 4 6 15 27 29 35 32 39 38 58 59 66 67 83 113 105 98 106 103 120 121 145 18 On Entrance 62 | . 6 8 23 31 29 42 33 44 42 66 57 74 77 113 116 64 116 96 109 128 151 6 Avg Prop Armor Cover (%) 8 | 8 8 8 . . 8 6 . 3 . . . 5 2 3 5 8 . 9 . . 26 . Naked Turns . | . . . . . . . . . . . . . . . . . . . . . . . Heaviest Build 116 | 14 14 57 64 64 44 42 62 62 67 61 77 93 92 88 87 86 94 79 116 77 103 13 Greatest Support 188 | 10 12 66 66 64 51 80 84 84 80 80 91 91 160 188 188 116 116 116 140 78 93 14 Greatest Overweight (x) 15 | 4 1 3 . 1 9 3 . 15 1 1 . 4 2 . 2 2 1 1 1 . 2 1 Average Overweight (x) . | 1 . . . . . . . . . . . . . . . . . . . . . . Largest Inventory Capacity 20 | 8 8 20 20 20 15 15 20 20 20 20 20 20 20 20 20 20 20 20 20 20 20 5 Average Capacity 18 | 7 8 13 20 17 15 15 15 17 17 20 20 20 20 20 20 20 20 20 20 20 19 5 Most Carried 20 | 1 8 20 20 19 14 15 19 20 20 20 15 20 20 20 20 20 20 20 20 20 20 5 Average Carried 15 | . 5 13 13 14 11 12 14 14 16 18 13 16 18 19 18 16 18 19 19 19 17 4 Final Capacity 20 | 8 8 20 20 15 15 15 20 15 20 20 20 20 20 20 20 20 20 20 20 20 5 5 Final Carried 20 | 1 8 20 18 10 12 13 19 14 20 14 15 20 19 20 19 17 20 19 19 19 4 3 Class Distribution -------------------- 49% | Bothacker-Mutant 19% | Scavenger-Mutant 16% | Botlord-Mutant 11% | Mutant Dominant Class ---------------- Mutant | -10/Materials Mutant | -9/Materials Mutant | -8/Materials Scavenger-Mutant | -8/Garrison Bothacker-Mutant | -7/Factory Bothacker-Mutant | -7/Garrison Bothacker-Mutant | -6/Factory Bothacker-Mutant | -6/Garrison Bothacker-Mutant | -6/Factory Botlord-Mutant | -6/Garrison Bothacker-Mutant | -5/Factory Bothacker-Mutant | -5/Extension Bothacker-Mutant | -5/Cetus Scavenger-Mutant | -5/Archives Scavenger-Mutant | -5/Hub_04(d) Bothacker-Mutant | -4/Factory Botlord-Mutant | -4/Garrison Botlord-Mutant | -3/Research Botlord-Mutant | -3/Armory Botlord-Mutant | -3/Lab Botlord-Sprinter | -2/Research Mutant | -2/Testing Resources | -11 -10 -9 -8 -8 -7 -7 -6 -6 -6 -6 -5 -5 -5 -5 -5 -4 -4 -3 -3 -3 -2 -2 ----------- Run | Yrd Mat Mat Mat Gar Fac Gar Fac Gar Fac Gar Fac Ext Cet Arc Hub Fac Gar Res Arm Lab Res Tes Matter Collected 10949 | 256 87 210 355 630 496 725 107 998 866 86 396 1058 310 281 586 743 794 268 1004 . 693 . Remotely . | . . . . . . . . . . . . . . . . . . . . . . . Salvage Created 12144 | 31 146 660 503 821 600 285 107 642 653 125 295 1181 108 526 1300 603 738 150 1441 . 1229 . Parts 638 | 6 7 41 35 30 40 20 7 30 39 8 10 55 5 26 65 32 52 5 59 . 66 . Haulers Intercepted 2 | . . 1 . . . . . . . . . . . . . . . 1 . . . . Recyclers Shooed 7 | . . 1 . . . . . . 1 . . . . . 2 2 . 1 . . . . Parts Field Recycled . | . . . . . . . . . . . . . . . . . . . . . . . Retrieved Matter . | . . . . . . . . . . . . . . . . . . . . . . . Parts Self-Destructed . | . . . . . . . . . . . . . . . . . . . . . . . Prevented . | . . . . . . . . . . . . . . . . . . . . . . . Parts Restored . | . . . . . . . . . . . . . . . . . . . . . . . Kills | -11 -10 -9 -8 -8 -7 -7 -6 -6 -6 -6 -5 -5 -5 -5 -5 -4 -4 -3 -3 -3 -2 -2 ------- Run | Yrd Mat Mat Mat Gar Fac Gar Fac Gar Fac Gar Fac Ext Cet Arc Hub Fac Gar Res Arm Lab Res Tes Combat Hostiles Destroyed 227 | . 3 10 15 24 13 8 2 16 10 5 5 17 1 4 19 10 17 1 23 . 24 . Melee 5 | . . . . . . . . . . . . . . . . . . . 1 . 4 . Guns 83 | . 3 1 . 3 2 3 2 16 7 5 3 11 . 4 18 5 . . . . . . Cannons 80 | . . 6 15 18 7 5 . . 3 . 2 3 . . . 5 6 1 8 . 1 . AOE 42 | . . 1 . 3 4 . . . . . . . . . . . 8 . 9 . 17 . Classes Destroyed 19 | 1 1 5 2 1 3 . . . 1 . . 1 . 1 1 . 2 . . . . . Worker 6 | . . . . . . . . . 1 . . . . . 3 . . 1 . . 1 . Builder 10 | . . . . . 1 . 1 . . . . 1 . . 3 1 . . . . 3 . Tunneler 5 | 2 . . . . . . . . . . . . . . 1 . . . . . 2 . Hauler 2 | . . 1 . . . . . . . . . . . . . . . 1 . . . . Recycler 2 | . . 1 . . . . . . 1 . . . . . . . . . . . . . Mechanic 2 | . . 1 . . 1 . . . . . . . . . . . . . . . . . Operator 5 | . . . . . . . . . . . . . . 4 . 1 . . . . . . Watcher 6 | . . 1 . . 1 . . . . . . . 1 . 2 . . . 1 . . . Swarmer 46 | . . . 2 . . 5 . 6 1 3 . . . . . . 4 . 6 . 19 . Cutter 4 | . . . . . . . . . . . . . . . . . 4 . . . . . Saboteur 3 | . . . . . . . . . . . . . . . . . 3 . . . . . Grunt 86 | . 3 6 9 21 3 . . 6 . . 5 7 . . 11 2 3 . 10 . . . Brawler 3 | . . . . 2 . . . . . . . . . . . . . . 1 . . . Duelist 3 | . . . . . . . . . . . . . . . 1 . 2 . . . . . Sentry 30 | . . 4 3 1 1 2 1 . 3 . . 8 . 4 . 1 . . . . 2 . Specialist 7 | . . . . . 1 . . 2 1 . . . . . 2 . . . 1 . . . Hunter 10 | . . . . . 1 . . 1 2 . . 1 . . 2 2 . . . . 1 . Programmer 32 | . . . 1 . 7 1 1 1 3 2 . . . . 3 5 . 1 5 . 2 . Behemoth 2 | . . . . . . . . . . . . 1 . . . . 1 . . . . . Cetus Guard 1 | . . . . . . . . . . . . . 1 . . . . . . . . . Best Kill Streak 9 | 2 3 4 3 6 5 4 2 5 3 3 3 5 2 4 9 4 4 1 7 . 9 . Combat Bots Only 9 | . 3 4 3 6 4 4 2 5 2 3 3 5 1 1 4 4 4 1 7 . 9 . Max Kills in Single Turn 5 | 1 1 1 1 3 2 1 1 1 1 1 1 1 1 2 5 1 3 1 3 . 4 . Gunslinging . | . . . . . . . . . . . . . . . . . . . . . . . Exploded 4 | . . 1 . 3 2 . . . . . . . . . . . 3 . 3 . 4 . Melee 1 | . . . . . . . . . . . . . . . . . . . 1 . 1 . Uniques/NPCs Destroyed . | . . . . . . . . . . . . . . . . . . . . . . . Combat | -11 -10 -9 -8 -8 -7 -7 -6 -6 -6 -6 -5 -5 -5 -5 -5 -4 -4 -3 -3 -3 -2 -2 -------- Run | Yrd Mat Mat Mat Gar Fac Gar Fac Gar Fac Gar Fac Ext Cet Arc Hub Fac Gar Res Arm Lab Res Tes Hostile Shots Fired 2441 | . 13 42 55 91 180 242 28 192 112 115 19 153 47 24 215 118 102 2 302 . 329 60 Missed 767 | . 7 12 13 24 59 74 12 47 48 38 6 49 16 7 51 26 34 2 116 . 98 28 Deflected 3 | . . . . . . . . . . . . . . . . . . . 2 . 1 . Hits 1674 | . 6 30 42 67 121 168 16 145 64 77 13 104 31 17 164 92 68 . 186 . 231 32 Melee 27 | . . . . 3 . 2 . 2 5 . . 1 . . 3 . 10 . . . 1 . Projectile 1647 | . 6 30 42 64 121 166 16 143 59 77 13 103 31 17 161 92 58 . 186 . 230 32 AOE 9 | . . . . . 1 . . . 1 . . . . . 1 1 5 . . . . . Critical Strikes 76 | . . 1 2 3 6 . 1 1 2 4 2 3 7 1 6 2 4 . 17 . 14 . Actively Blocked 1 | . . . . . . . . . 1 . . . . . . . . . . . . . Part Disruptions 9 | . . . . . . . . 3 . . . . . . 4 . . . . . 2 . Damage Taken 30959 | . 73 490 698 1124 1824 1571 221 2218 1131 980 267 2404 889 443 3173 1758 1590 23 4238 . 5230 614 Core 4638 | . 34 63 49 154 259 397 58 210 93 134 20 239 80 . 201 365 187 . 643 . 1140 312 Absorbed by Shields 372 | . . . . . . 42 . 4 . 5 . 49 . . . . . . 272 . . . Redirected to Shielding 43 | . . . . . . . . 3 40 . . . . . . . . . . . . . Ignored by Resistances 78 | . . . . . . . . . . . . 48 . . 30 . . . . . . . Regen/Repaired (Parts) 208 | . . . . . . . . . . . . . . . . . . . . . 208 . Core Remaining (%) 58 | 100 86 84 . 63 . 6 . . . 41 . . . . 46 . 52 . . 50 . . Volleys Fired 953 | 7 18 34 36 49 44 64 7 83 48 32 20 101 16 27 86 65 73 8 76 . 55 4 Largest 3 | 2 2 2 2 2 2 2 2 2 2 2 2 2 2 2 2 2 2 2 2 . 3 1 Hottest 275 | 60 105 121 93 102 106 117 108 108 144 30 162 162 133 70 275 240 205 88 208 . 158 88 Shots Fired 1544 | 14 35 60 72 96 80 99 14 128 89 50 28 176 28 54 149 86 88 9 105 . 80 4 Gun 841 | 14 35 31 . 26 29 63 14 105 61 37 11 131 16 54 139 41 1 . . . 29 4 Cannon 491 | . . 29 72 70 46 25 . . 22 . 7 26 11 . . 40 52 2 70 . 19 . Launcher 64 | . . . . . 3 . . . . . . . . . 5 . 20 . 16 . 20 . Special 148 | . . . . . 2 11 . 23 6 13 10 19 1 . 5 5 15 7 19 . 12 . Kinetic 874 | 7 8 . 59 70 68 75 7 79 70 37 11 122 16 54 98 27 16 2 28 . 20 . Thermal 223 | . 9 13 . 16 . 6 7 15 5 . . 13 4 . 41 48 15 . 21 . 6 4 Explosive 6 | . . . . . . . . . . . . . . . 5 . 1 . . . . . Electromagnetic 293 | 7 18 47 13 10 10 7 . 11 8 . 7 22 7 . . 6 41 . 37 . 42 . Robot Hit Streak 24 | 2 5 10 10 12 9 8 12 15 9 10 9 15 14 7 24 8 8 10 11 . 4 . Robot Miss Streak 16 | 3 1 2 8 6 9 16 3 8 4 2 2 4 2 4 4 3 16 2 7 . 8 . Penetration Max 1 | . . . . . 1 . . . . . . . 1 1 1 . . . . . 1 . Secondary Targets 9 | . . . . . . 1 . 2 . 1 1 1 . . 3 . . . . . . . Max Gunslinging Chain 1 | . . . . . . 1 . 1 . 1 1 1 . . 1 . . . . . . . Shots Hit Robots 1027 | 6 18 47 60 75 52 37 12 108 54 31 19 130 22 31 90 53 43 12 83 . 44 . Core Hits 690 | 2 8 18 64 103 47 18 11 74 27 8 9 41 9 23 55 30 40 2 50 . 51 . Critical Kills 14 | . . . . . . . . . . . . 4 1 4 3 . 1 . 1 . . . Critical Parts Destroyed 8 | . . . . . . . . . 1 . . . . 1 5 1 . . . . . . Critical Strikes 38 | . . 1 . 1 3 . . . 1 . . 5 1 6 8 1 1 . 5 . 5 . Burn 1 | . . . . 1 . . . . . . . . . . . . . . . . . . Meltdown 5 | . . . . . . . . . . . . 2 1 . . . 1 . 1 . . . Destroy 18 | . . . . . . . . . 1 . . 2 . 6 8 1 . . . . . . Blast 8 | . . . . . 3 . . . . . . . . . . . . . 4 . 1 . Corrupt 2 | . . 1 . . . . . . . . . 1 . . . . . . . . . . Impale 4 | . . . . . . . . . . . . . . . . . . . . . 4 . Melee Attacks 46 | . . . . . . . . . . . . . . . . . . 6 13 3 24 . Impact . | . . . . . . . . . . . . . . . . . . . . . . . Slashing . | . . . . . . . . . . . . . . . . . . . . . . . Piercing 46 | . . . . . . . . . . . . . . . . . . 6 13 3 24 . Sneak Attacks 8 | . . . . . . . . . . . . . . . . . . 4 . . 4 . Combat Hostiles . | . . . . . . . . . . . . . . . . . . . . . . . Follow-up Attacks . | . . . . . . . . . . . . . . . . . . . . . . . Damage Inflicted 30324 | 107 232 915 1109 1781 1953 562 302 1586 1178 633 347 2947 572 907 3835 1741 1570 431 3831 . 3785 . Guns 12938 | 107 232 309 . 258 447 399 302 1585 806 633 183 2270 399 907 3092 779 14 . . . 216 . Cannons 9373 | . . 518 1051 1393 867 163 . . 372 . 164 677 173 . . 808 792 36 1904 . 455 . Explosions 6534 | . . 88 58 130 639 . . . . . . . . . 734 . 764 . 1731 . 2390 . Melee 1268 | . . . . . . . . . . . . . . . . . . 373 196 . 699 . Ramming 211 | . . . . . . . . 1 . . . . . . 9 154 . 22 . . 25 . Kinetic 14958 | 38 72 . 818 1393 1177 399 117 1201 993 633 183 2150 399 907 2246 522 298 36 727 . 649 . Thermal 5122 | . 27 222 58 296 163 89 185 297 37 . . 422 98 . 846 945 354 . 759 . 324 . Explosive 214 | . . . . . . . . . . . . . . . 214 . . . . . . . Electromagnetic 8551 | 69 133 693 233 92 613 74 . 87 148 . 164 375 75 . 520 120 918 . 2149 . 2088 . Impact . | . . . . . . . . . . . . . . . . . . . . . . . Slashing . | . . . . . . . . . . . . . . . . . . . . . . . Piercing 1268 | . . . . . . . . . . . . . . . . . . 373 196 . 699 . Highest Corruption 22 | . . . 1 1 21 22 5 7 7 6 . 10 10 10 16 3 11 1 17 17 21 21 Average Corruption 8 | . . . 1 1 6 21 4 6 6 5 . 9 10 10 10 2 7 1 7 17 5 21 Corruption Purged 11 | . . . . . . . . . 8 . . . . . . 3 . . . . . . Corruption Blocked . | . . . . . . . . . . . . . . . . . . . . . . . Effects 330 | . . . 1 7 4 38 . 37 32 4 . 35 24 9 35 8 35 1 18 15 15 12 Message Errors 64 | . . . 1 1 1 12 . 5 6 . . 7 2 . 5 3 8 1 6 2 1 3 Matter Fused 91 | . . . . 4 2 7 . 16 11 . . 8 4 4 11 2 9 . 5 5 1 2 Heat Flow Errors 45 | . . . . 1 . 2 . 4 4 . . 10 3 1 3 1 8 . 2 2 1 3 Energy Discharges 35 | . . . . . . 4 . 3 4 1 . 2 4 . 5 . 3 . 1 3 5 . Parts Rejected 5 | . . . . . . . . . 2 . . . . . . 1 . . 2 . . . Parts Fused 6 | . . . . . . . . . . . . 1 2 1 1 . 1 . . . . . Data Loss (minor) 36 | . . . . . 1 4 . 5 3 1 . 5 5 1 1 1 5 . 1 1 1 1 Data Loss (major) 16 | . . . . . . 2 . 2 1 . . 1 . 1 4 . . . . 2 2 1 Misfires 10 | . . . . 1 . 1 . 2 . 1 . . 2 . 2 . . . . . 1 . Alerts 3 | . . . . . . 1 . . 1 . . . . 1 . . . . . . . . Misdirections 6 | . . . . . . . . . . . . . 1 . 1 . . . 1 . 1 2 Weapon Failures 13 | . . . . . . 5 . . . 1 . 1 1 . 2 . 1 . . . 2 . Overload Shots 3 | . . . . . . . . . . . . . . . 2 1 . . . . . . Overflow Damage 826 | . . . . . 35 . . . 13 . . 6 . . 83 8 . 123 42 . 516 . Projectiles 121 | . . . . . 14 . . . 13 . . 6 . . . 5 . . 27 . 56 . Explosions 172 | . . . . . 21 . . . . . . . . . 83 . . . 6 . 62 . Melee 533 | . . . . . . . . . . . . . . . . 3 . 123 9 . 398 . Knockbacks 116 | . . . 23 29 19 2 . . 1 . . . . . 1 5 11 1 17 . 7 . Impact 3 | . . . . . . . . . . . . . . . 1 2 . . . . . . Kinetic 106 | . . . 23 26 17 2 . . 1 . . . . . . 3 10 1 17 . 6 . Secondary 7 | . . . . 3 2 . . . . . . . . . . . 1 . . . 1 . Self-Inflicted Damage 625 | . . 57 52 18 100 . . . . . . . . . 82 . 75 . 56 . 185 . Shots 26 | . . 3 1 1 4 . . . . . . . . . 1 . 3 . 3 . 10 . Rammed 10 | . . . . . . . . . . . . . . . 2 . . . . . 8 . Targets Rammed 23 | . . . . . . . . 2 . . . . . . 2 10 . 1 . . 8 . Kicked 13 | . . . . . . . . 2 . . . . . . . 10 . 1 . . . . Crushed . | . . . . . . . . . . . . . . . . . . . . . . . Highest Temperature 372 | 40 144 249 194 69 . 257 1 249 372 . 125 227 233 232 238 190 197 . 195 91 345 216 Average Temperature 74 | 26 36 88 61 13 . 109 1 63 75 . 50 93 108 130 81 50 63 . 91 46 158 64 Received Heat Transfer 5643 | . 39 165 369 594 156 276 18 384 180 72 157 456 45 45 846 138 175 . 440 . 1088 . Siege Activations . | . . . . . . . . . . . . . . . . . . . . . . . Martial Activations 2 | . . . . . . . . . . . . . . . . 2 . . . . . . Total Turns 19 | . . . . . . . . . . . . . . . . 19 . . . . . . Longest Duration 17 | . . . . . . . . . . . . . . . . 17 . . . . . . Shielding Activations 3 | . . . . . . . . . . . . . . . . . . . 2 . 1 . Total Turns 15 | . . . . . . . . . . . . . . . . . . . 9 . 6 . Longest Duration 8 | . . . . . . . . . . . . . . . . . . . 8 . 6 . Robots Disrupted 7 | . . 1 . . . . . . . . . 1 1 . . . . . 1 . 3 . Combat Hostiles 7 | . . 1 . . . . . . . . . 1 1 . . . . . 1 . 3 . Robots Corrupted 12 | . . 2 . . . . . . . . . . . . 1 . 2 . 4 . 3 . Combat Hostiles 11 | . . 2 . . . . . . . . . . . . 1 . 2 . 4 . 2 . Parts Fried 50 | . . 4 1 . . . . 1 1 . . 2 . . 4 1 4 . 16 . 16 . Impact Corruptions 2 | . . . . . . . . . . . . . . . . 1 . . . . 1 . Robots Melted 5 | . . . . . . . . . . . . 2 1 . . . 1 . 1 . . . Combat Hostiles 5 | . . . . . . . . . . . . 2 1 . . . 1 . 1 . . . Parts Melted 27 | . . 1 . 1 . 1 3 3 . . . 6 1 . 1 2 3 . 5 . . . Heat Transferred 6859 | . 111 483 50 631 100 200 375 634 74 . . 650 150 . 1040 1024 408 . 629 . 300 . Parts Sabotaged 10 | . . . . . . 3 . 7 . . . . . . . . . . . . . . Parts Stolen . | . . . . . . . . . . . . . . . . . . . . . . . Parts Stripped . | . . . . . . . . . . . . . . . . . . . . . . . Power Chain Reactions 12 | . . 3 1 1 2 . . . . . . . . . 1 . 1 . . . 3 . Alert | -11 -10 -9 -8 -8 -7 -7 -6 -6 -6 -6 -5 -5 -5 -5 -5 -4 -4 -3 -3 -3 -2 -2 ------- Run | Yrd Mat Mat Mat Gar Fac Gar Fac Gar Fac Gar Fac Ext Cet Arc Hub Fac Gar Res Arm Lab Res Tes Maximum Alert Level 3 | . . . 1 3 2 2 1 2 1 . . . . . 1 . 2 1 . . 1 . Low Security (%) 64 | 100 100 100 86 3 . . 66 19 54 100 100 100 100 100 92 100 46 38 100 . 95 100 Level 1 20 | . . . 13 6 36 22 33 58 45 . . . . . 7 . 43 61 . . 4 . Level 2 11 | . . . . 40 63 77 . 22 . . . . . . . . 9 . . . . . Level 3 3 | . . . . 49 . . . . . . . . . . . . . . . . . . Level 4 . | . . . . . . . . . . . . . . . . . . . . . . . Level 5 . | . . . . . . . . . . . . . . . . . . . . . . . High Security . | . . . . . . . . . . . . . . . . . . . . . . . Max Security . | . . . . . . . . . . . . . . . . . . . . . . . Peak Influence 978 | 10 70 122 271 978 552 491 261 578 323 169 85 150 77 60 388 170 547 307 178 . 293 104 Initial 513 | . . 12 44 165 513 304 261 84 303 10 14 27 64 2 14 170 18 307 19 . . 102 Average 187 | . 15 58 106 653 434 419 169 302 192 108 18 49 21 38 104 38 214 210 47 . 75 58 Influence Increases 9610 | 10 80 376 491 863 490 394 65 734 757 219 157 690 298 171 994 559 669 85 731 . 753 24 Destroy 0b10 Robot/C 5015 | . 60 200 360 540 340 240 40 360 420 100 100 420 160 80 380 240 255 15 345 . 360 . Destroy 0b10 Robot/NC 196 | 10 . 20 . . 15 . 5 . 15 . . 15 5 20 45 10 . 8 4 . 24 . Destroy Leader 772 | . 20 64 90 30 52 10 20 30 120 10 10 52 . . 64 60 16 10 58 . 56 . Allied During Kill 359 | . . . 14 15 20 4 . 14 64 . 2 72 63 . 8 19 21 16 23 . 4 . Successful Hack 256 | . . 6 7 20 9 . . . 21 14 . 24 . . 4 68 8 32 25 . 18 . Disable Machine 543 | . . . . . 45 . . . 75 . 15 45 60 45 90 60 . . 72 . 24 12 Anti-Garrison Action 815 | . . . . 200 . 50 . 250 . 50 . . . . . . 265 . . . . . Destroy Structure 868 | . . 11 5 13 9 15 . 5 27 . . 2 10 26 328 102 92 4 120 . 99 . Partial Spotted 42 | . . . . . . . . . 15 15 . . . . . . . . 12 . . . Lose Combat Pursuer 744 | . . 75 15 45 . 75 . 75 . 30 30 60 . . 75 . 12 . 72 . 168 12 Influence Decreases 9598 | 10 50 300 342 140 1033 331 443 276 1320 205 130 629 408 136 688 880 149 594 614 155 570 195 Entered New Map 2131 | . . 18 62 90 465 131 237 36 275 5 15 29 53 5 28 178 9 240 19 155 . 81 Time Decay 4213 | 10 50 262 230 . 368 . 206 . 620 . 104 446 229 100 360 278 . 254 316 . 280 100 Lost Part 1408 | . . 10 10 50 120 120 . 200 50 40 . 90 26 14 90 102 100 . 122 . 250 14 Lost Ally 1159 | . . 10 40 . 80 80 . 40 100 160 11 64 100 17 60 60 40 100 157 . 40 . Purge Threat 687 | . . . . . . . . . 275 . . . . . 150 262 . . . . . . Squads Dispatched 52 | . 2 2 8 . 4 . 1 . 6 . . 2 . . 9 6 . 1 4 . 5 2 Investigation 9 | . . 1 2 . 1 . . . 1 . . . . . . 3 . . 1 . . . Extermination 13 | . . . . . 1 . . . 3 . . . . . 1 3 . . 2 . 2 1 Reinforcement 24 | . 2 1 2 . 1 . . . 2 . . 2 . . 8 . . 1 1 . 3 1 Assault . | . . . . . . . . . . . . . . . . . . . . . . . Garrison 6 | . . . 4 . 1 . 1 . . . . . . . . . . . . . . . Intercept . | . . . . . . . . . . . . . . . . . . . . . . . Searches Triggered . | . . . . . . . . . . . . . . . . . . . . . . . Construction Impeded 4 | . . . . . . . . . . . . 1 . . 1 . . . . . 2 . Haulers Reinforced 2 | . . . . . . . . . . . . . . . 2 . . . . . . . Active Scanning Responses . | . . . . . . . . . . . . . . . . . . . . . . . Cargo Convoy Interrupts 2 | . . . . . 1 . . . . . . . . . . . . . . . 1 . Alert ID Control Effect 25 | . . . . . . . . . . 1 3 1 . . . . 5 3 8 . 4 . Stealth | -11 -10 -9 -8 -8 -7 -7 -6 -6 -6 -6 -5 -5 -5 -5 -5 -4 -4 -3 -3 -3 -2 -2 --------- Run | Yrd Mat Mat Mat Gar Fac Gar Fac Gar Fac Gar Fac Ext Cet Arc Hub Fac Gar Res Arm Lab Res Tes Distress Signals 15 | . . 2 1 1 1 . . . . . . . 1 . 1 . . . 1 . 5 2 Communications Jammed 40 | . . . . . 4 . . . . . . . . 2 26 8 . . . . . . Distress Signals 34 | . . . . . 1 . . . . . . . . 2 26 5 . . . . . . Times Spotted 516 | . 7 22 19 31 32 24 3 31 29 23 13 37 10 9 36 29 30 10 51 . 61 9 Peak Tracking Total 16 | . 2 4 4 6 11 5 2 5 4 11 5 6 5 1 5 4 4 3 11 . 16 7 Tactical Retreats 35 | . . 2 1 2 . 4 . 3 . 2 2 1 . . 5 . 1 . 3 . 8 1 Traps | -11 -10 -9 -8 -8 -7 -7 -6 -6 -6 -6 -5 -5 -5 -5 -5 -4 -4 -3 -3 -3 -2 -2 ------- Run | Yrd Mat Mat Mat Gar Fac Gar Fac Gar Fac Gar Fac Ext Cet Arc Hub Fac Gar Res Arm Lab Res Tes Traps Triggered 31 | . . . . 2 . 3 . 6 1 3 1 2 . . . 1 10 . 1 . 1 . Indirectly 2 | . . . . . . . . . . . . . . . . . 1 . 1 . . . Trap Hack Attempts . | . . . . . . . . . . . . . . . . . . . . . . . Triggered . | . . . . . . . . . . . . . . . . . . . . . . . Disarmed . | . . . . . . . . . . . . . . . . . . . . . . . Reprogrammed . | . . . . . . . . . . . . . . . . . . . . . . . Reused . | . . . . . . . . . . . . . . . . . . . . . . . Traps Extracted . | . . . . . . . . . . . . . . . . . . . . . . . Installed . | . . . . . . . . . . . . . . . . . . . . . . . Triggered . | . . . . . . . . . . . . . . . . . . . . . . . Machines | -11 -10 -9 -8 -8 -7 -7 -6 -6 -6 -6 -5 -5 -5 -5 -5 -4 -4 -3 -3 -3 -2 -2 ---------- Run | Yrd Mat Mat Mat Gar Fac Gar Fac Gar Fac Gar Fac Ext Cet Arc Hub Fac Gar Res Arm Lab Res Tes Machines Disabled 51 | . . . . 2 3 1 . 3 5 1 1 3 4 3 6 4 5 . 6 1 2 1 Max in Single Turn 2 | . . . . 1 1 1 . 1 1 1 1 1 1 1 2 2 1 . 1 1 1 1 Garrison Access 4 | . . . . . . . . . 1 . . . . . . 2 . . . . . 1 Garrison Relay 12 | . . . . 2 . 1 . 3 . 1 . . . . . . 5 . . . . . Network Hub 2 | . . . . . . . . . . . . . . . 2 . . . . . . . Machines Repaired . | . . . . . . . . . . . . . . . . . . . . . . . Machines Dismantled 6 | . . . . . . . . . . . . 3 3 . . . . . . . . . Machines Sabotaged . | . . . . . . . . . . . . . . . . . . . . . . . Overloaded Fab Kills . | . . . . . . . . . . . . . . . . . . . . . . . Hacking | -11 -10 -9 -8 -8 -7 -7 -6 -6 -6 -6 -5 -5 -5 -5 -5 -4 -4 -3 -3 -3 -2 -2 --------- Run | Yrd Mat Mat Mat Gar Fac Gar Fac Gar Fac Gar Fac Ext Cet Arc Hub Fac Gar Res Arm Lab Res Tes Machines Accessed 62 | . 2 4 1 3 1 1 1 1 7 2 2 7 . . 2 15 1 1 4 1 3 3 Terminals 42 | . 1 3 . 3 . 1 . 1 3 2 1 7 . . 2 10 1 . 3 . 3 1 Fabricators 4 | . . . . . . . . . 1 . . . . . . 2 . . 1 . . . Repair Stations 2 | . 1 . . . . . . . . . . . . . . . . . . . . 1 Recycling Units . | . . . . . . . . . . . . . . . . . . . . . . . Scanalyzers 3 | . . 1 . . . . . . 1 . 1 . . . . . . . . . . . Garrison Access 10 | . . . 1 . 1 . 1 . 2 . . . . . . 3 . 1 . . . 1 Total Hacks 187 | . 4 14 4 7 3 2 4 4 16 4 4 13 . . 4 66 1 2 7 1 20 7 Successful 91 | . 1 5 3 2 3 1 2 . 8 2 1 4 . . 2 46 1 2 2 1 4 1 Failed 93 | . 3 8 1 5 . 1 2 4 7 2 3 9 . . 2 19 . . 5 . 16 6 Catastrophic 17 | . . . . . . . 1 1 . . . 1 . . . . . . 3 . 7 4 Database Lockouts 3 | . . 1 . . . . . . 1 . . . . . . 1 . . . . . . Manual 89 | . 1 8 2 . 2 . 3 . 7 . 2 4 . . 4 36 . 2 2 . 13 3 Terminals 142 | . 1 12 . 7 . 2 . 4 7 4 2 13 . . 4 56 1 . 6 . 20 3 Fabricators 6 | . . . . . . . . . 1 . . . . . . 4 . . 1 . . . Repair Stations 6 | . 3 . . . . . . . . . . . . . . . . . . . . 3 Recycling Units . | . . . . . . . . . . . . . . . . . . . . . . . Scanalyzers 7 | . . 2 . . . . . . 3 . 2 . . . . . . . . . . . Garrison Access 25 | . . . 4 . 3 . 4 . 5 . . . . . . 6 . 2 . . . 1 Terminal Hacks 39 | . . 2 . 2 . 1 . . 1 2 . 3 . . . 23 1 . 1 1 2 . Record 1 | . . . . . . . . . . . . . . . . . . . . 1 . . Part Schematic 6 | . . 1 . . . . . . . . . . . . . 5 . . . . . . Prototype ID Bank 3 | . . . . . . . . . 1 . . . . . . 2 . . . . . . Open Door 3 | . . . . 1 . . . . . . . 2 . . . . . . . . . . Level Access Points 2 | . . . . . . . . . . . . . . . . 1 . . . . 1 . Branch Access Points 2 | . . 1 . . . . . . . . . . . . . 1 . . . . . . Emergency Access Points 3 | . . . . . . 1 . . . 1 . . . . . . 1 . . . . . Machine Index 1 | . . . . . . . . . . . . . . . . . . . . . 1 . Terminal Index 1 | . . . . . . . . . . . . . . . . 1 . . . . . . Fabricator Index 1 | . . . . . . . . . . . . . . . . 1 . . . . . . Recycling Unit Index 1 | . . . . . . . . . . . . . . . . 1 . . . . . . Garrison Index 1 | . . . . . . . . . . . . . . . . 1 . . . . . . Unreport Threat 2 | . . . . . . . . . . . . . . . . 2 . . . . . . Locate Traps 3 | . . . . . . . . . . . . 1 . . . 1 . . 1 . . . Maintenance Status 1 | . . . . . . . . . . . . . . . . 1 . . . . . . Transport Status 1 | . . . . . . . . . . . . . . . . 1 . . . . . . Recall Investigation 2 | . . . . . . . . . . . . . . . . 2 . . . . . . Hauler Manifests 1 | . . . . . . . . . . . . . . . . 1 . . . . . . Registered Components 1 | . . . . . . . . . . . . . . . . 1 . . . . . . Zone Layout 1 | . . . . . . . . . . . . . . . . 1 . . . . . . Garrison Registry 1 | . . . . . . . . . . 1 . . . . . . . . . . . . Security Stations 1 | . . . . 1 . . . . . . . . . . . . . . . . . . Fabricator Hacks 5 | . . . . . . . . . 1 . . . . . . 4 . . . . . . Load Schematic 2 | . . . . . . . . . . . . . . . . 2 . . . . . . Build 3 | . . . . . . . . . 1 . . . . . . 2 . . . . . . Repair Station Hacks 1 | . 1 . . . . . . . . . . . . . . . . . . . . . Refit 1 | . 1 . . . . . . . . . . . . . . . . . . . . . Recycling Unit Hacks . | . . . . . . . . . . . . . . . . . . . . . . . Scanalyzer 3 | . . . . . . . . . 2 . 1 . . . . . . . . . . . Retrieve Study 3 | . . . . . . . . . 2 . 1 . . . . . . . . . . . Garrison Access Hacks 10 | . . . 1 . 1 . 1 . 3 . . . . . . 3 . . . . . 1 Unlock Access 6 | . . . 1 . 1 . 1 . 2 . . . . . . 1 . . . . . . Seal Access 4 | . . . . . . . . . 1 . . . . . . 2 . . . . . 1 Unauthorized Hacks 33 | . . 3 2 . 2 . 1 . 1 . . 1 . . 2 16 . 2 1 . 2 . Terminals 23 | . . 3 . . . . . . 1 . . 1 . . 2 14 . . . . 2 . Track 1 | . . . . . . . . . . . . . . . . 1 . . . . . . Assimilate 2 | . . 1 . . . . . . . . . . . . . 1 . . . . . . Botnet 10 | . . 2 . . . . . . 1 . . 1 . . 2 3 . . . . 1 . Operators 3 | . . . . . . . . . . . . . . . . 2 . . . . 1 . Skim 7 | . . . . . . . . . . . . . . . . 7 . . . . . . Fabricators 1 | . . . . . . . . . . . . . . . . . . . 1 . . . Liberate 1 | . . . . . . . . . . . . . . . . . . . 1 . . . Repair Stations . | . . . . . . . . . . . . . . . . . . . . . . . Recycling Units . | . . . . . . . . . . . . . . . . . . . . . . . Scanalyzers . | . . . . . . . . . . . . . . . . . . . . . . . Garrison Access 9 | . . . 2 . 2 . 1 . . . . . . . . 2 . 2 . . . . Restock 5 | . . . 1 . 1 . 1 . . . . . . . . 1 . 1 . . . . Reprogram 4 | . . . 1 . 1 . . . . . . . . . . 1 . 1 . . . . Data Cores Recovered 1 | . . . . . . . . . . . . . . . . 1 . . . . . . Used . | . . . . . . . . . . . . . . . . . . . . . . . Hacking Detections 44 | . 2 2 1 2 . 1 1 1 6 2 2 6 . . 1 8 . 1 4 . 2 2 Full Trace Events 3 | . 1 . . . . . . . . . . . . . . 2 . . . . . . Feedback Events . | . . . . . . . . . . . . . . . . . . . . . . . Feedback Blocked . | . . . . . . . . . . . . . . . . . . . . . . . Robot Schematics Acquired . | . . . . . . . . . . . . . . . . . . . . . . . Robots Built . | . . . . . . . . . . . . . . . . . . . . . . . Authchips . | . . . . . . . . . . . . . . . . . . . . . . . Time . | . . . . . . . . . . . . . . . . . . . . . . . Total Robot Build Rating . | . . . . . . . . . . . . . . . . . . . . . . . Part Schematics Acquired 6 | . . 1 . . . . . . . . . . . . . 5 . . . . . . Parts Built 4 | . . . . . . . . . 2 . . . . . . 2 . . . . . . Authchips . | . . . . . . . . . . . . . . . . . . . . . . . Time 256 | . . . . . . . . . 64 . . . . . . 192 . . . . . . Total Part Build Rating 31 | . . . . . . . . . 16 . . . . . . 15 . . . . . . Part Studies Acquired 2 | . . . . . . . . . 2 . . . . . . . . . . . . . Parts Repaired . | . . . . . . . . . . . . . . . . . . . . . . . Time . | . . . . . . . . . . . . . . . . . . . . . . . Parts Recycled . | . . . . . . . . . . . . . . . . . . . . . . . Recycled Matter . | . . . . . . . . . . . . . . . . . . . . . . . Retrieved Matter . | . . . . . . . . . . . . . . . . . . . . . . . Retrieved Components . | . . . . . . . . . . . . . . . . . . . . . . . Parts Scanalyzed . | . . . . . . . . . . . . . . . . . . . . . . . Part Schematics Acquired . | . . . . . . . . . . . . . . . . . . . . . . . Parts Damaged . | . . . . . . . . . . . . . . . . . . . . . . . Bothacking | -11 -10 -9 -8 -8 -7 -7 -6 -6 -6 -6 -5 -5 -5 -5 -5 -4 -4 -3 -3 -3 -2 -2 ------------ Run | Yrd Mat Mat Mat Gar Fac Gar Fac Gar Fac Gar Fac Ext Cet Arc Hub Fac Gar Res Arm Lab Res Tes Used RIF Installer 5 | . . . . 1 . 1 . 1 . 1 . . . . . . 1 . . . . . Threat Obfuscator 1 | . . . . . . . . . . . . . . . . . 1 . . . . . Zone Cloak 1 | . . . . . . . . 1 . . . . . . . . . . . . . . Watcher Feeds 1 | . . . . . . 1 . . . . . . . . . . . . . . . . Alert ID Control 1 | . . . . . . . . . . 1 . . . . . . . . . . . . Robots Hacked 78 | . . . . . 2 6 . 10 3 9 4 5 . . 4 2 8 6 9 . 10 . Non-combat 13 | . . . . . 1 . . . 2 . . 3 . . 1 . . 1 . . 5 . Combat 65 | . . . . . 1 6 . 10 1 9 4 2 . . 3 2 8 5 9 . 5 . Robot Hacks Applied 86 | . . . . . 2 8 . 12 5 9 5 5 . . 5 2 8 6 9 . 10 . parse_system 3 | . . . . . . 1 . 1 . . 1 . . . . . . . . . . . no_distress 6 | . . . . . . . . . . . . . . . . . . 1 . . 5 . map_walls 1 | . . . . . 1 . . . . . . . . . . . . . . . . . drop_inventory 1 | . . . . . . . . . 1 . . . . . . . . . . . . . purge_threat 3 | . . . . . . . . . 2 . . . . . 1 . . . . . . . find_terminals 2 | . . . . . . . . . 1 . . . . . 1 . . . . . . . scatter_targeting 1 | . . . . . . . . . . . 1 . . . . . . . . . . . overload_power 1 | . . . . . . 1 . . . . . . . . . . . . . . . . reboot_system 5 | . . . . . . 1 . 2 . 1 . . . . . . . . . . 1 . go_dormant 1 | . . . . . . . . 1 . . . . . . . . . . . . . . overwrite_iff 14 | . . . . . . 2 . 2 . 3 . . . . . 1 1 1 2 . 2 . streamctrl_high 2 | . . . . . . . . 1 . . . . . . 1 . . . . . . . formatsys_low 2 | . . . . . . . . . . . . 2 . . . . . . . . . . formatsys_high 44 | . . . . . 1 3 . 5 1 5 3 3 . . 2 1 7 4 7 . 2 . Relay Couplers Released 68 | . . . 4 10 . 4 3 10 . 5 . . . . 3 6 20 3 . . . . Machine Destruction 52 | . . . . 10 . 4 . 10 . 5 . . . . . 3 20 . . . . . Programmers 16 | . . . 4 . . . 3 . . . . . . . 3 3 . 3 . . . . Attached 45 | . . . . . 2 4 . 6 2 4 . 2 . . 3 2 8 4 8 . . . Fabnet Peak Effective % . | . . . . . . . . . . . . . . . . . . . . . . . Robots Rewired 12 | . . . . 2 . . . 1 . . . 8 . . . . . . 1 . . . Allies Hacked 3 | . . . . . 1 . . . . . . . . . . 2 . . . . . . Hacks Repelled . | . . . . . . . . . . . . . . . . . . . . . . . Allies | -11 -10 -9 -8 -8 -7 -7 -6 -6 -6 -6 -5 -5 -5 -5 -5 -4 -4 -3 -3 -3 -2 -2 -------- Run | Yrd Mat Mat Mat Gar Fac Gar Fac Gar Fac Gar Fac Ext Cet Arc Hub Fac Gar Res Arm Lab Res Tes Total Allies 87 | . . 1 2 2 4 4 . 9 1 8 3 19 . . 3 4 8 5 10 . 4 . Largest Group 8 | . . 1 2 2 3 2 . 5 5 2 2 8 8 3 2 2 4 5 5 . 3 . Highest-Rated Group 294 | . . 10 32 59 59 46 . 160 160 94 60 274 226 73 58 130 142 236 294 . 207 . Highest-Rated Ally 159 | . . 10 16 39 39 32 . 148 41 47 30 159 39 39 49 83 48 48 64 . 69 . Total Orders 7 | . . . . . . . . 2 . . . . . . . 1 . 2 2 . . . STAY 4 | . . . . . . . . 1 . . . . . . . 1 . 1 1 . . . FOLLOW 3 | . . . . . . . . 1 . . . . . . . . . 1 1 . . . Ally Attacks 459 | . . . 18 20 44 13 . 30 47 12 14 69 26 1 11 16 25 24 64 . 25 . Total Damage 12305 | . . . 187 269 653 351 . 621 1678 270 341 1390 720 32 171 445 594 761 2742 . 1080 . Kills 71 | . . . 3 3 4 4 . 2 13 1 3 7 7 . . 2 6 3 9 . 4 . Allies Corrupted 5 | . . . . . . . . . . . . 1 . . . 1 . 1 2 . . . Allies Melted 1 | . . . . . . . . 1 . . . . . . . . . . . . . . Intel | -11 -10 -9 -8 -8 -7 -7 -6 -6 -6 -6 -5 -5 -5 -5 -5 -4 -4 -3 -3 -3 -2 -2 ------- Run | Yrd Mat Mat Mat Gar Fac Gar Fac Gar Fac Gar Fac Ext Cet Arc Hub Fac Gar Res Arm Lab Res Tes Active Infowar (turns) 7864 | . . . . . 542 . 375 195 . . 424 1189 714 221 871 1395 422 194 472 367 483 . Optics 2 | . . . . . . . . . . . . . 2 . . . . . . . . . Sensors 2248 | . . . . . . . . . . . 321 1189 714 24 . . . . . . . . Structural 2086 | . . . . . . . 375 195 . . . . . . . . . 194 472 367 483 . Jamming 3692 | . . . . . 542 . . . . . 129 1 111 221 871 1395 422 . . . . . Robot Analysis Total . | . . . . . . . . . . . . . . . . . . . . . . . Derelict Logs Recovered . | . . . . . . . . . . . . . . . . . . . . . . . Drone Launches . | . . . . . . . . . . . . . . . . . . . . . . . Drone Recoveries . | . . . . . . . . . . . . . . . . . . . . . . . Exploration | -11 -10 -9 -8 -8 -7 -7 -6 -6 -6 -6 -5 -5 -5 -5 -5 -4 -4 -3 -3 -3 -2 -2 ------------- Run | Yrd Mat Mat Mat Gar Fac Gar Fac Gar Fac Gar Fac Ext Cet Arc Hub Fac Gar Res Arm Lab Res Tes Turns Passed 17501 | 93 262 565 485 1267 849 694 423 1231 2082 327 453 1598 714 221 871 1428 1305 551 796 367 692 227 Spaces Moved 9648 | 39 208 258 202 594 348 310 159 622 1076 169 283 872 267 74 306 907 748 346 535 239 727 359 Core 285 | 13 . . . . 1 . . 1 . . . . . . . . . . . . 11 259 Treads 1669 | . . 76 202 313 242 100 159 125 . . . . 59 74 301 18 . . . . . . Legs 5627 | 18 34 139 . 281 80 . . 250 1076 169 283 834 208 . 5 889 748 346 264 . 3 . Wheels 46 | 8 . . . . . . . . . . . 38 . . . . . . . . . . Hover 1636 | . 174 43 . . 25 71 . . . . . . . . . . . . 271 239 713 100 Flight 385 | . . . . . . 139 . 246 . . . . . . . . . . . . . . Fastest Speed 26 | 50 76 76 145 150 48 48 152 106 101 127 123 108 108 160 160 96 116 108 34 30 26 50 Average Speed 120 | 157 94 125 147 173 193 126 156 138 120 136 124 127 173 160 163 116 137 127 75 31 38 53 Slowest Speed 800 | 250 190 330 150 232 500 240 160 800 190 200 127 385 245 160 320 270 186 185 180 34 277 100 Overloaded Moves 22 | . . . . . . . . . . . . . . . . . . . . . 22 . Propulsion Burnouts . | . . . . . . . . . . . . . . . . . . . . . . . Robots Hopped . | . . . . . . . . . . . . . . . . . . . . . . . Potential Cave-ins . | . . . . . . . . . . . . . . . . . . . . . . . Cave-ins Triggered . | . . . . . . . . . . . . . . . . . . . . . . . Exploration Rate (%) 42 | 4 44 26 13 64 14 34 4 59 33 33 8 85 89 71 57 26 86 11 38 94 29 47 Regions Visited 22 Branch Regions 7 Pre-discovered Areas . | . . . . . . . . . . . . . . . . . . . . . . . Known Exits Taken 8 | . . . 1 . 1 . 1 . 1 . 1 . . . 1 1 . 1 . . . . Unknown Exits Taken 9 | 1 1 1 . . . . . . . . . 1 1 1 . . . . 1 1 1 . Scrap Searched . | . . . . . . . . . . . . . . . . . . . . . . . Spaces Dug 84 | . . . . . 1 9 . . . . . . . . 47 8 . 2 5 . 12 . Terrain Destroyed 426 | . . 9 4 3 6 10 . 1 2 . . 2 3 13 253 57 13 2 14 . 34 . Melee 14 | . . . . . . . . . . . . . . . . . . 2 4 . 8 . Projectile 107 | . . . . . 3 10 . 1 2 . . 2 3 13 34 18 2 . 10 . 9 . AOE 305 | . . 9 4 3 3 . . . . . . . . . 219 39 11 . . . 17 . Terrain Rammed . | . . . . . . . . . . . . . . . . . . . . . . . Walls Destroyed . | . . . . . . . . . . . . . . . . . . . . . . . Machines Disabled . | . . . . . . . . . . . . . . . . . . . . . . . Actions | -11 -10 -9 -8 -8 -7 -7 -6 -6 -6 -6 -5 -5 -5 -5 -5 -4 -4 -3 -3 -3 -2 -2 --------- Run | Yrd Mat Mat Mat Gar Fac Gar Fac Gar Fac Gar Fac Ext Cet Arc Hub Fac Gar Res Arm Lab Res Tes Total 13884 | 56 239 440 320 738 435 508 319 869 1786 231 361 1170 420 123 525 1189 959 444 808 527 1025 392 Wait 1958 | . 1 99 57 46 8 49 133 26 566 6 40 89 23 5 97 132 27 51 87 267 137 12 Move 9623 | 38 207 257 201 592 347 309 158 620 1075 168 282 871 266 73 305 906 747 345 533 238 726 359 Hop . | . . . . . . . . . . . . . . . . . . . . . . . Pick Up 180 | 1 3 12 7 7 7 13 8 15 20 2 4 6 6 4 2 12 19 4 16 3 7 2 Fast Attach 219 | 7 1 11 6 3 12 11 2 17 24 . 7 15 12 5 7 19 12 8 18 5 11 6 Attach 154 | 1 . 3 1 6 5 11 . 19 4 8 1 7 1 1 5 14 11 6 19 3 25 3 Detach 69 | 1 5 4 . . . 1 . 2 . . . 3 1 1 3 7 3 4 9 4 19 2 Swap 170 | . 2 7 . 5 6 8 5 11 17 1 3 29 6 1 13 9 18 3 22 . 4 . Drop 214 | 1 2 11 12 14 5 4 6 9 32 4 4 9 18 6 4 15 19 8 14 4 9 4 Fire 953 | 7 18 34 36 49 44 64 7 83 48 32 20 101 16 27 86 65 73 8 76 . 55 4 Melee 46 | . . . . . . . . . . . . . . . . . . 6 13 3 24 . Ram 8 | . . . . . . . . . . . . . . . . . . . . . 8 . Kick 13 | . . . . . . . . 2 . . . . . . . 10 . 1 . . . . Crush 2 | . . . . . . . . . . . . . . . 2 . . . . . . . Escape Stasis 165 | . . . . 10 . 38 . 65 . 9 . 13 . . . . 29 . 1 . . . Rewire 15 | . . 2 . 6 1 . . . . 1 . 3 . . 1 . 1 . . . . . Trap . | . . . . . . . . . . . . . . . . . . . . . . . Miscellaneous 95 | . . . . . . . . . . . . 24 71 . . . . . . . . . Route ------- -11/Scrapyard -10/Materials -9/Materials (discovered 2 exits: *Mat / Min) -8/Materials -8/Garrison (discovered 3 exits: *Fac x3) -7/Factory -7/Garrison -6/Factory -6/Garrison (discovered 3 exits: *Fac x3) -6/Factory (discovered 3 exits: *Fac / *Low / Gar) -6/Garrison (discovered 3 exits: *Fac x3) -5/Factory (discovered 2 exits: *Fac / *Ext) -5/Extension (discovered 2 exits: *Fac / [*Cet]) -5/Cetus (discovered 2 exits: *Fac / [*Arc]) -5/Archives -5/Hub_04(d) (discovered 2 exits: *Fac x2) -4/Factory (discovered 7 exits: *Res x4 / Upp x2 / Gar) -4/Garrison (discovered 3 exits: *Res x3) -3/Research -3/Armory -3/Lab -2/Research (discovered 4 exits: Acc x3 / *Tes) -2/Testing History --------- Turn | Location | Event 28 | -11/Scrapyard | Discovered new exit (range 15) 94 | -11/Scrapyard | Entered Materials 295 | -10/Materials | Discovered new exit (range 10) 318 | -10/Materials | Build established: Mutant 356 | -10/Materials | Entered another Materials area 356 | -9/Materials | Evolved 2 slots: Propulsion x1, Utility x1 641 | -9/Materials | Identified exit to Mines 842 | -9/Materials | Central database locked down 895 | -9/Materials | Discovered new exit (range 16) 921 | -9/Materials | Entered another Materials area 921 | -8/Materials | Evolved 2 slots: Utility x2 989 | -8/Materials | Garrison activated, responded to threat 1269 | -8/Materials | Identified exit to Garrison 1306 | -8/Materials | Met 7R-MNS 1311 | -8/Materials | Garrison activated, responded to threat 1406 | -8/Materials | Entered Garrison 1504 | -8/Garrison | Triggered checkpoint 1536 | -8/Garrison | Garrison Relay disabled 1640 | -8/Garrison | Triggered checkpoint 1716 | -8/Garrison | Triggered checkpoint 1760 | -8/Garrison | Garrison Relay disabled 1822 | -8/Garrison | Learned Factory security intel 1839 | -8/Garrison | Discovered new exit (range 10) 1928 | -8/Garrison | Triggered checkpoint 2026 | -8/Garrison | Triggered checkpoint 2161 | -8/Garrison | Discovered new exit (range 10) 2298 | -8/Garrison | Triggered checkpoint 2358 | -8/Garrison | Triggered checkpoint 2363 | -8/Garrison | Build established: Scavenger-Mutant 2426 | -8/Garrison | Triggered checkpoint 2481 | -8/Garrison | Discovered new exit (range 12) 2586 | -8/Garrison | Installed Relay Interface Framework 2673 | -8/Garrison | Entered Factory 2673 | -7/Factory | Accompanied by 2 allies 2673 | -7/Factory | Evolved 2 slots: Propulsion x1, Utility x1 2715 | -7/Factory | P-60 Hacker assimilated allied CN-3TL(h) 2875 | -7/Factory | Build established: Bothacker-Mutant 3326 | -7/Factory | Identified exit to Garrison 3433 | -7/Factory | Cargo convoy interrupted 3439 | -7/Factory | Garrison activated, responded to threat 3471 | -7/Factory | System corruption reached 10% 3504 | -7/Factory | Lost 3 allies 3506 | -7/Factory | Lost 9 parts (1p3n3u2w) 3522 | -7/Factory | Entered Garrison 3522 | -7/Garrison | Accompanied by 1 ally 3596 | -7/Garrison | Triggered checkpoint 3640 | -7/Garrison | Lost 3 parts (2n1w) 3659 | -7/Garrison | Garrison Relay disabled 3731 | -7/Garrison | Core integrity fell below 50% 3800 | -7/Garrison | Expanded RIF knowledge: Watcher Feeds 3882 | -7/Garrison | Triggered checkpoint 3922 | -7/Garrison | Triggered checkpoint 3952 | -7/Garrison | Triggered checkpoint 3983 | -7/Garrison | Core integrity fell below 20% 4018 | -7/Garrison | Lost 8 parts (1p4n1u2w) 4200 | -7/Garrison | Discovered new exit (range 10) 4216 | -7/Garrison | Entered Factory 4216 | -6/Factory | Evolved 2 slots: Utility x2 4436 | -6/Factory | Identified exit to Garrison 4594 | -6/Factory | Garrison activated, responded to threat 4639 | -6/Factory | Entered Garrison 4717 | -6/Garrison | Expanded RIF knowledge: Zone Cloak 4856 | -6/Garrison | Triggered checkpoint 4929 | -6/Garrison | Triggered checkpoint 4937 | -6/Garrison | Lost 5 parts (1p2n1u1w) 5062 | -6/Garrison | Lost 8 parts (1p2n2u3w) 5231 | -6/Garrison | Discovered new exit (range 10) 5236 | -6/Garrison | Spotted B-90 Cyclops 5236 | -6/Garrison | Spotted B-90 Cyclops 5246 | -6/Garrison | Rewired B-86 Titan 5253 | -6/Garrison | Allies destroyed B-90 Cyclops 5285 | -6/Garrison | Identified exit to Factory 5297 | -6/Garrison | Triggered checkpoint 5370 | -6/Garrison | Garrison Relay disabled 5526 | -6/Garrison | Discovered exit to Factory (range 15) 5531 | -6/Garrison | Triggered checkpoint 5587 | -6/Garrison | Triggered checkpoint 5598 | -6/Garrison | Garrison Relay disabled 5673 | -6/Garrison | Triggered checkpoint 5733 | -6/Garrison | Triggered checkpoint 5756 | -6/Garrison | Garrison Relay disabled 5817 | -6/Garrison | Triggered checkpoint 5831 | -6/Garrison | Discovered exit to Factory (range 13) 5870 | -6/Garrison | Entered Factory 5870 | -6/Factory | Accompanied by 5 allies 5945 | -6/Factory | Lost 3 parts (1n2w) 6197 | -6/Factory | Build established: Scavenger-Mutant 6234 | -6/Factory | Identified exit to Garrison 6450 | -6/Factory | Lost 3 allies 6582 | -6/Factory | Discovered new exit (range 6) 6588 | -6/Factory | Identified exit to Lower Caves 6791 | -6/Factory | Central database locked down 6925 | -6/Factory | Fabricated Mic. Antimatter Reactor (x2) 7032 | -6/Factory | Discovered new exit (range 18) 7048 | -6/Factory | Build established: Bothacker-Mutant 7106 | -6/Factory | Identified exit to Factory 7950 | -6/Factory | Identified exit to Garrison 7952 | -6/Factory | Entered Garrison 7998 | -6/Garrison | Expanded RIF knowledge: Alert ID Control 8038 | -6/Garrison | Triggered checkpoint 8061 | -6/Garrison | Garrison Relay disabled 8079 | -6/Garrison | Discovered exit to Factory (range 77) 8079 | -6/Garrison | Discovered exit to Factory (range 36) 8079 | -6/Garrison | Discovered exit to Factory (range 57) 8190 | -6/Garrison | Lost 3 parts (1n2u) 8208 | -6/Garrison | Triggered checkpoint 8230 | -6/Garrison | Triggered checkpoint 8232 | -6/Garrison | Triggered checkpoint 8240 | -6/Garrison | Core integrity fell below 50% 8279 | -6/Garrison | Entered Factory 8279 | -5/Factory | Evolved 2 slots: Propulsion x1, Utility x1 8302 | -5/Factory | Lost 8 allies 8575 | -5/Factory | Discovered new exit (range 13) 8651 | -5/Factory | Identified exit to Factory 8714 | -5/Factory | Discovered new exit (range 16) 8731 | -5/Factory | Identified exit to Extension 8732 | -5/Factory | Entered Extension 8985 | -5/Extension | Rescued a captive Derelict 9033 | -5/Extension | Rescued a captive Derelict 9135 | -5/Extension | Rescued A7 9425 | -5/Extension | System corruption reached 10% 9545 | -5/Extension | Spotted B-75 Beast 9561 | -5/Extension | Allies destroyed B-75 Beast 9578 | -5/Extension | Spotted B-75 Beast 9612 | -5/Extension | Destroyed B-75 Beast 9624 | -5/Extension | Lost 6 allies 9646 | -5/Extension | Extracted ID and sensor layout for unrecognized location from A7's data core 9659 | -5/Extension | Lost 10 parts (4n4u2w) 10000 | -5/Extension | Rescued a captive Derelict 10016 | -5/Extension | Rescued a captive Derelict 10128 | -5/Extension | Lost 3 allies 10243 | -5/Extension | Rescued a captive Derelict 10278 | -5/Extension | Discovered exit to Factory (range 10) 10279 | -5/Extension | Discovered new exit (range 6) 10330 | -5/Extension | Entered Cetus 10330 | -5/Cetus | Accompanied by 8 allies 10355 | -5/Cetus | Spotted Cetus Guard 10355 | -5/Cetus | Spotted Cetus Guard 10360 | -5/Cetus | Allies destroyed Cetus Guard 10363 | -5/Cetus | Spotted Cetus Guard 10363 | -5/Cetus | Spotted Cetus Guard 10370 | -5/Cetus | Allies destroyed Cetus Guard 10382 | -5/Cetus | Allies destroyed Cetus Guard 10387 | -5/Cetus | Allies destroyed Cetus Guard 10397 | -5/Cetus | Lost 3 allies 10408 | -5/Cetus | Lost 3 parts (3n) 10627 | -5/Cetus | Cetus Manufacturing Module disabled 10830 | -5/Cetus | Discovered new exit (range 15) 10862 | -5/Cetus | Spotted Cetus Guard 10863 | -5/Cetus | Spotted Cetus Guard 10867 | -5/Cetus | Spotted Cetus Guard 10869 | -5/Cetus | Allies destroyed Cetus Guard 10870 | -5/Cetus | Spotted Cetus Guard 10871 | -5/Cetus | Allies destroyed Cetus Guard 10876 | -5/Cetus | Destroyed Cetus Guard 10879 | -5/Cetus | Allies destroyed Cetus Guard 10890 | -5/Cetus | Discovered exit to Factory (range 16) 10905 | -5/Cetus | Met Revision 17 11044 | -5/Cetus | Entered Archives 11044 | -5/Archives | Accompanied by 3 allies 11100 | -5/Archives | Lost 3 allies 11138 | -5/Archives | Build established: Scavenger-Mutant 11222 | -5/Archives | Discovered new exit (range 16) 11265 | -5/Archives | Entered Hub_04(d) 11731 | -5/Hub_04(d) | Discovered exit to Factory (range 19) 11972 | -5/Hub_04(d) | Discovered exit to Factory (range 21) 11978 | -5/Hub_04(d) | Core integrity fell below 50% 12097 | -5/Hub_04(d) | Network Hub disabled 12136 | -5/Hub_04(d) | Network Hub disabled 12136 | -5/Hub_04(d) | Entered Factory 12136 | -4/Factory | Evolved 2 slots: Power x1, Utility x1 12167 | -4/Factory | Lost 4 parts (1n2u1w) 12230 | -4/Factory | Central database locked down 12282 | -4/Factory | Found Prototype Launcher 12282 | -4/Factory | Identified Com. Tesla Bomb Launcher 12562 | -4/Factory | Lost 5 parts (2p2u1w) 12579 | -4/Factory | Build established: Bothacker-Mutant 12614 | -4/Factory | Lost 4 parts (3n1w) 12706 | -4/Factory | Identified exit to Research 12843 | -4/Factory | Identified exit to Upper Caves 12867 | -4/Factory | Learned location of 3 exits from Factory 12932 | -4/Factory | Learned Research trap positions 13021 | -4/Factory | Identified exit to Garrison 13034 | -4/Factory | Learned Testing garrison access intel 13106 | -4/Factory | P-80 Master assimilated hostile S-27 Virus 13161 | -4/Factory | Learned Armory garrison access intel 13168 | -4/Factory | Lost 3 allies 13305 | -4/Factory | Fabricated Centrium Leg (x1) 13431 | -4/Factory | Fabricated Adv. Hacking Suite (x1) 13564 | -4/Factory | Entered Garrison 13582 | -4/Garrison | Expanded RIF knowledge: Threat Obfuscation 13626 | -4/Garrison | Triggered checkpoint 13667 | -4/Garrison | Garrison Relay disabled 13739 | -4/Garrison | Spotted B-86 Titan 13747 | -4/Garrison | Triggered checkpoint 13894 | -4/Garrison | Destroyed B-86 Titan 13989 | -4/Garrison | System corruption reached 10% 14025 | -4/Garrison | Lost 5 parts (1p4u) 14138 | -4/Garrison | Triggered checkpoint 14156 | -4/Garrison | Garrison Relay disabled 14173 | -4/Garrison | Garrison Relay disabled 14334 | -4/Garrison | Triggered checkpoint 14460 | -4/Garrison | Garrison Relay disabled 14472 | -4/Garrison | Triggered checkpoint 14497 | -4/Garrison | Build established: Botlord-Mutant 14558 | -4/Garrison | Found Relay Coupler [Proto] 14561 | -4/Garrison | Found Relay Coupler [Proto] 14564 | -4/Garrison | Found Relay Coupler [Proto] 14572 | -4/Garrison | Found Relay Coupler [Proto] 14596 | -4/Garrison | Lost 3 allies 14724 | -4/Garrison | Triggered checkpoint 14779 | -4/Garrison | Garrison Relay disabled 14869 | -4/Garrison | Entered Research 14869 | -3/Research | Accompanied by 3 allies 14869 | -3/Research | Evolved 2 slots: Utility x2 14870 | -3/Research | Identified exit to Armory 14871 | -3/Research | Loaded intel: 56 trap records 15420 | -3/Research | Entered Armory 15420 | -3/Armory | Accompanied by 2 allies 15840 | -3/Armory | Lost 5 allies 15885 | -3/Armory | System corruption reached 10% 15949 | -3/Armory | Lost 9 parts (2n6u1w) 15957 | -3/Armory | Destroyed 7 combat bots 16146 | -3/Armory | Lost 3 parts (1p2u) 16156 | -3/Armory | Discovered new exit (range 5) 16216 | -3/Armory | Entered Lab 16216 | -3/Lab | Discovered new exit (range 10) 16222 | -3/Lab | Hidden lab's door opened automatically 16222 | -3/Lab | Sensor layout match revealed 16223 | -3/Lab | Gained access to the hidden lab's interior 16305 | -3/Lab | Unable to decrypt terminal 16466 | -3/Lab | Unable to decrypt terminal 16492 | -3/Lab | Found Alien Artifact 16492 | -3/Lab | Identified Core Expander 16492 | -3/Lab | Installed Core Expander, added new Propulsion slot 16495 | -3/Lab | Found Alien Artifact 16495 | -3/Lab | Identified Integrated Dissipator 16495 | -3/Lab | Installed Integrated Dissipator, increased core heat dissipation (+20) 16501 | -3/Lab | Found Alien Artifact 16517 | -3/Lab | Found Prototype Energy Gun 16517 | -3/Lab | Identified Hyp. EM Gauss Rifle 16520 | -3/Lab | Found Hyp. EM Gauss Rifle 16522 | -3/Lab | Found Prototype Protection 16522 | -3/Lab | Identified Med. Regenerative Plating 16525 | -3/Lab | Found Prototype Hackware 16525 | -3/Lab | Identified Quantum Router 16547 | -3/Lab | Found Prototype Special Weapon 16548 | -3/Lab | Identified Gui. Remote Datajack 16583 | -3/Lab | Entered Research 16583 | -2/Research | Evolved 2 slots: Propulsion x1, Weapon x1 17013 | -2/Research | Spotted B-90 Cyclops 17018 | -2/Research | Spotted B-90 Cyclops 17124 | -2/Research | Identified exit to Access 17159 | -2/Research | Discovered new exit (range 22) 17188 | -2/Research | Lost 5 parts (2n3u) 17195 | -2/Research | Destroyed 9 combat bots 17230 | -2/Research | System corruption reached 10% 17258 | -2/Research | Core integrity fell below 50% 17260 | -2/Research | Destroyed 7 combat bots 17275 | -2/Research | Cargo convoy interrupted 17275 | -2/Research | Spotted Executioner 17275 | -2/Research | Spotted Executioner 17275 | -2/Research | Entered Testing 17276 | -2/Testing | Loaded intel: 1 garrison access location 17302 | -2/Testing | Lost 17 parts (1p8n7u1w) 17305 | -2/Testing | Found Prototype Device 17305 | -2/Testing | Identified 2N-1CE's Frost Array 17397 | -2/Testing | Spotted Superbehemoth 17451 | -2/Testing | Core integrity fell below 20% 17491 | -2/Testing | Spotted Fortress 17502 | -2/Testing | Destroyed by H-88 Terminator with KE Penetrator Last Messages --------------- 17471_ Identified Cld. Q-thruster. 17471_ Dispersion Rifle broken. 17471_ Faulty integration triggers power surge. 17472_ Dropped Faulty Cld. Q-thruster. 17475_ W-44 Eye sends out distress signal. 17478_ WAEDP,KZ|VVGN4/WWJLY2WF|7 GAV D 17489_ Penetrated by Slug. 17492_ Slug penetrates Wall. 17492_ Penetrated by Slug. 17492_ Broken Dispersion Rifle destroyed. 17492_ Slug penetrates Wall. 17493_ System corrupted: Substantial component data lost. 17494_ System Shield destroyed. 17494_ Knocked back. 17495_ Slug penetrates Wall. 17495_ Broken Dispersion Rifle destroyed. 17496_ Slug penetrates Wall. 17496_ Penetrated by Slug. 17502_ Slug penetrates Wall. 17502_ Penetrated by Slug. Map ----- +----------------------------------------------------+ | ?????????????????????????????????????????????????? | | ?????????????????????????????????????????????????? | | ?????????????????????????????????????????????????? | | ?????????????????????????????????????????????????? | | ?????????????????????????????????????????????????? | | ?????????????????????????????????????????????????? | | ?????????????????????????????????????????????????? | | ?????????????????????????????????????????????????? | | ?????????????????????????????????????????????????? | | ?????????????????????????????????????????????????? | | ?????????????????????????????????????????????????? | | ?????????????????????????????????????????????????? | | ?????????????????????????????????????????????????? | | ?????????????????????????????????????????????????? | | ?????????????????????????????????????????????????? | | ?????????????????????????????????????????????????? | | ?????????????????????????????????????????????????? | | ?????????????????????????????????????????????????? | | ??#??????????????????????????????????????????????? | | ###"###################################??????????? | | ??????????? | | h ?????????? | | h k ?????????? | | ????????? | | ????????? | | @ ????????? | | ######### ;;###################????????????? | | ????????#" ""#????????????????????????????????? | | ????????# ""#????????????????????????????????? | | ????????#"" ""#????????????????????????????????? | | ????????#"" ""#????????????????????????????????? | | ????????#"""""""#????????????????????????????????? | | ????????#########????????????????????????????????? | | ?????????????????????????????????????????????????? | | ?????????????????????????????????????????????????? | | ?????????????????????????????????????????????????? | | ?????????????????????????????????????????????????? | | ?????????????????????????????????????????????????? | | ?????????????????????????????????????????????????? | | ?????????????????????????????????????????????????? | | ?????????????????????????????????????????????????? | | ?????????????????????????????????????????????????? | | ?????????????????????????????????????????????????? | | ?????????????????????????????????????????????????? | | ?????????????????????????????????????????????????? | | ?????????????????????????????????????????????????? | | ?????????????????????????????????????????????????? | | ?????????????????????????????????????????????????? | | ?????????????????????????????????????????????????? | | ?????????????????????????????????????????????????? | +----------------------------------------------------+ Best States ------------- Heat Dissipation 169 Coolant Potential 100 Energy Generation 45 Energy Capacity 600 Matter Stores 346 Matter Capacity 350 Sight Range 16 Robot Scan Range 16 Terrain Scan Density 10 Jamming Range 14 Power Amplification 40 Armor Coverage 600 Resistance: TH 15 Resistance: EM 15 Propulsion Shielding 33 Weapon Cycling 20 Phase Shifting 15 Evasion (%) 80 Targeting Accuracy 11 Melee Accuracy 8 Target Analysis 8 Core Analysis 6 Armor Integrity Analysis 30 Recoil Reduction 5 Offensive Hacking 38 Defensive Hacking 35 Relay Coupler Types 7 Relay Coupler Value 150 Item Schematics ----------------- Plasma Cutter | -9/Materials | Hacked Centrium Leg | -4/Factory | Hacked Adv. Hacking Suite | -4/Factory | Hacked Adv. Heavy Siege Treads | -4/Factory | Hacked Biometal Medium Treads | -4/Factory | Hacked Cmb. Antigrav System | -4/Factory | Hacked Robot Schematics ------------------ None Fabricated ------------ Mic. Antimatter Reactor | x2 | -6/Factory | Preloaded Centrium Leg | x1 | -4/Factory Adv. Hacking Suite | x1 | -4/Factory Repaired ---------- Nothing Studied --------- Carbon-fiber Leg | -6/Factory | Hacked Flexi-carbon Leg | -6/Factory | Hacked Alien Tech Used ----------------- Core Expander Integrated Dissipator Achievements -------------- None Challenges ------------ None Game ------ Seed ImpactAerolevThruster Manual? 0 Play Time 04:40:41 Cumulative 405.8 hours Start 2025.11.15 @ 15:14:05 End 2025.11.16 @ 13:08:01 Sessions 5 Manual Loads 0 Difficulty Rogue Special Mode None Game No. 175 Rogue 104 Adventurer 68 Explorer 3 Win Type - Total 34 Types 20/2/3/4/3/0/0/0/0/2 Lore% 79 Gallery% 77 Achievement% 56 Wizard Run 0 Options --------- Layout 0 ASCII 0 Keyboard 0 Movement Numpad Keybinds 0 Fullscreen 1 Font 24/Smallcaps Map View 76x50 Zoom Use 0% Tactical HUD 1 Map Filters NONE Filters NONE Steam 1 RUN: dceddcde-f8bd-4c9e-a7b4-288b7a2a89d6